[Event "13th KIIT Festival-A 2022"]
[Site "Bhubaneswar"]
[Date "2022.05.24"]
[Round "3.11"]
[White "Aaditya Dhingra"]
[Black "Azaladze, Shota"]
[Result "0-1"]
[ECO "B08"]
[WhiteElo "2042"]
[BlackElo "2420"]
[Annotator "TA"]
[PlyCount "98"]
[EventDate "2022.05.15"]
[EventType "swiss"]
[EventCountry "IND"]
[SourceTitle "playchess.com"]
[Source "ChessBase"]
[SourceQuality "1"]
[TimeControl "5400+30"]

{[%evp 19,98,0,0,0,-9,-53,-58,-56,-52,-92,-81,-78,-70,-151,-61,-52,-39,-69,-37,-46,-25,-37,-43,-52,-47,-63,-79,-131,-123,-148,-112,-118,-106,-140,-27,-29,-20,-26,-12,-6,-11,-10,-4,-11,-15,-4,-5,-5,-9,-43,-45,-31,-36,-56,0,0,0,-681,0,0,0,0,0,0,0,-23,-22,-681,-681,-664,-637,-581,-581,-680,-673,-650,-472,-658,-651,-641,-513]} 1. e4 {[%emt 0:00:14]} g6 {[%emt 0:00:11]} 2. d4 {[%emt 0:00:15]} Bg7 {[%emt 0:00:02]} 3. Nf3 {[%emt 0:00:42]} c6 {[%emt 0:00:11]} 4. Nc3 {[%emt 0:00:28]} d6 {[%emt 0:00:03]} 5. Be3 {[%emt 0:00:48]} Nf6 {[%emt 0:00:10]} 6. Qd2 {[%emt 0:04:25]} O-O {[%emt 0:01:07]} 7. h3 {[%emt 0:01:49]} b5 {[%emt 0:00:37]} 8. a3 {[%emt 0:01:21]} a6 {[%emt 0:01:17]} 9. Be2 {[%emt 0:06:58]} Qc7 {[%emt 0:01:27]} 10. O-O {[%emt 0:05:11]} Nbd7 {[%emt 0:01:06]} 11. Rad1 {[%emt 0:01:56] B08: Pirc Defence: Classical System.} c5 {[%emt 0:09:10] [#]} 12. dxc5 $146 {[%emt 0:12:00]} ({Predecessor:} 12. d5 b4 13. axb4 cxb4 14. Na2 a5 15. Bd3 Nc5 16. Bxc5 Qxc5 17. Rfe1 Nd7 18. c3 bxc3 19. Nxc3 {0-1 (45) Belus,B (1961)-Petran,P (2306) Tatranske Zruby 2016}) 12... Nxc5 {[%emt 0:02:47]} 13. Bxc5 {[%emt 0:06:20] Black is slightly better.} Qxc5 {[%emt 0:00:30]} 14. Bd3 {[%emt 0:00:49]} Bb7 {[%emt 0:02:51]} 15. Rfe1 {[%emt 0:01:22]} Nd7 {[%emt 0:00:20]} 16. Nd5 {[%emt 0:09:05]} (16. Rb1 $15) 16... Rfe8 {[%emt 0:05:58]} (16... Bxb2 $17 {And now ...e6 would win.} 17. Nxe7+ Kg7) 17. b4 $15 {[%emt 0:13:55]} Qc8 {[%emt 0:00:24]} 18. Qg5 {[%emt 0:02:52]} Bxd5 {[%emt 0:01:11]} (18... Qd8 $5 {[%cal Re7e6]}) 19. exd5 {[%emt 0:00:24]} Bf6 {[%emt 0:00:22]} 20. Qh6 {[%emt 0:02:33]} Qc7 {[%emt 0:03:46]} 21. Re4 {[%emt 0:02:58]} Bg7 {[%emt 0:00:29]} 22. Qg5 {[%emt 0:04:03]} Nf6 {[%emt 0:00:39]} 23. Rd4 {[%emt 0:00:39]} (23. Ree1 $142) 23... Qc3 $17 {[%emt 0:00:17]} 24. Qc1 {[%emt 0:05:28]} Rec8 {[%emt 0:01:05]} 25. Re1 {[%emt 0:00:58]} Ra7 {[%emt 0:01:52]} 26. g4 {[%emt 0:01:04] [#]} a5 {[%emt 0:04:12]} (26... Rac7 $1 $17 {White must now prevent ...Nd7.} 27. Rd1 Nd7) 27. g5 $11 {[%emt 0:02:38]} Nd7 {[%emt 0:00:52][%cal Bf6d7,Bd7b6,Bb6d5,Bd5b4,Bb4d3][%mdl 32]} 28. Rde4 {[%emt 0:00:59]} axb4 {[%emt 0:00:50]} 29. axb4 {[%emt 0:00:32]} Nb6 {[%emt 0:04:41]} 30. Qe3 {[%emt 0:02:07]} Rb7 {[%emt 0:00:03]} 31. Rxe7 {[%emt 0:03:24]} Rxe7 {[%emt 0:04:15]} (31... Nxd5 {feels hotter.} 32. Re8+ Rxe8 33. Qxe8+ Bf8) 32. Qxe7 {[%emt 0:00:04]} Nxd5 {[%emt 0:00:07]} 33. Qxd6 {[%emt 0:01:48]} Nxb4 {[%emt 0:01:29]} 34. Qd7 {[%emt 0:01:30]} Nxd3 {[%emt 0:01:23]} (34... Nxc2 $2 35. Rc1 $18) 35. cxd3 {[%emt 0:00:08]} b4 {[%emt 0:00:14] [#] ...b3 is the strong threat.} 36. Kg2 {[%emt 0:02:27]} (36. Re8+ Rxe8 37. Qxe8+ Bf8 $17) 36... b3 {[%emt 0:01:59]} (36... Bf8 $15) 37. Re8+ {[%emt 0:02:10]} Rxe8 {[%emt 0:00:06]} 38. Qxe8+ {[%emt 0:00:02][%mdl 4096] Endgame KQB-KQN} Bf8 {[%emt 0:00:08] aiming for ...b2.} 39. Ne5 {[%emt 0:00:24]} Qc7 {[%emt 0:00:14]} 40. Nd7 {[%emt 0:01:44][%csl Gd7][%cal Re8f8]} ({But not} 40. Nc4 $2 Qb7+ 41. Qe4 Qb5 $19) 40... Qd6 {[%emt 0:00:19]} 41. Nf6+ {[%emt 0:01:17]} Kg7 {[%emt 0:03:17] Threatens to win with ...h5.} 42. Qb5 {[%emt 0:00:18]} (42. Qe4 $5 {[%cal Rf6e8]} Qe6 43. Ne8+ Kh8 44. Qd4+ Kg8 45. Nf6+ Kh8 46. Nh5+ Kg8 47. Nf6+ Kh8 48. Nh5+ Kg8 49. Nf6+ $11) 42... Qc5 {[%emt 0:01:08]} 43. Ne8+ $2 {[%emt 0:00:39][%mdl 8192] Now White is beyond hope.} (43. Qxb3 $11 Qxg5+ 44. Ng4) 43... Kh8 $19 {[%emt 0:00:17] Black is clearly winning.} 44. Qxb3 {[%emt 0:00:59] Hoping for Qb2+.} Qc6+ {[%emt 0:00:07]} 45. Kf1 {[%emt 0:00:09]} Qxe8 {[%emt 0:00:03]} 46. Qc3+ {[%emt 0:00:21]} Bg7 {[%emt 0:00:11]} 47. Qc7 {[%emt 0:00:16]} Kg8 {[%emt 0:00:03]} 48. Qd6 {[%emt 0:00:25]} Qe5 {[%emt 0:00:28]} 49. Qd8+ {[%emt 0:00:20]} Bf8 {[%emt 0:00:03] Weighted Error Value: White=0.35/Black=0.20 (precise)} 0-1

[Event "13th KIIT Festival-A 2022"]
[Site "Bhubaneswar"]
[Date "2022.05.24"]
[Round "3.12"]
[White "Nitin, S.."]
[Black "Santu, Mondal"]
[Result "1-0"]
[ECO "C02"]
[WhiteElo "2399"]
[BlackElo "2097"]
[Annotator "TA"]
[PlyCount "57"]
[EventDate "2022.05.15"]
[EventType "swiss"]
[EventCountry "IND"]
[SourceTitle "playchess.com"]
[Source "ChessBase"]
[SourceQuality "1"]
[TimeControl "5400+30"]

{[%evp 20,57,23,19,45,31,26,37,29,48,32,36,41,41,41,10,10,14,21,18,15,-5,0,7,90,89,117,118,133,125,287,280,285,252,255,242,29985,29986,29985,29985]} 1. e4 {[%emt 0:00:34]} e6 {[%emt 0:00:45]} 2. d4 {[%emt 0:00:12]} d5 {[%emt 0:00:10]} 3. e5 {[%emt 0:00:08]} c5 {[%emt 0:00:13]} 4. c3 {[%emt 0:00:10]} Nc6 {[%emt 0:00:17]} 5. Nf3 {[%emt 0:00:14]} Qb6 {[%emt 0:00:23]} 6. Be2 {[%emt 0:00:20]} cxd4 {[%emt 0:05:53]} 7. cxd4 {[%emt 0:00:34]} Nge7 {[%emt 0:00:11]} 8. Na3 {[%emt 0:03:22]} Nf5 {[%emt 0:00:56]} 9. Nc2 {[%emt 0:00:27]} Be7 {[%emt 0:01:11]} 10. O-O {[%emt 0:02:44]} Bd7 {[%emt 0:01:42]} 11. Bd3 {[%emt 0:28:56]} Rc8 {[%emt 0:10:48] C02: French: Advance Variation.} (11... Ncxd4 $2 12. Nfxd4 Nxd4 13. Be3 $18) 12. g4 {[%emt 0:02:00]} (12. Bxf5 exf5 13. Qd3 Nb4 14. Nxb4 Qxb4 $11) 12... Nh4 {[%emt 0:14:22]} (12... Nfxd4 13. Nfxd4 Nxe5 14. Be2 $16) 13. Nxh4 {[%emt 0:00:50]} Bxh4 {[%emt 0:00:06] White is slightly better.} 14. g5 {[%emt 0:14:18] [#] Strongly threatening Qg4.} h6 {[%emt 0:14:04]} (14... Nxd4 $2 15. Be3 Bxg5 16. Bxd4 $18 (16. Bxg5 Nxc2 17. Bxc2 Qxb2 $14)) 15. gxh6 {[%emt 0:03:32]} gxh6 {[%emt 0:01:26]} 16. Kh1 {[%emt 0:02:16]} Be7 {[%emt 0:19:06] [#]} (16... Nxd4 $2 17. Be3 $18) 17. Qg4 $146 {[%emt 0:06:36]} ({Predecessor:} 17. Bd2 a5 18. Rb1 Na7 19. Qe1 Nc6 20. Qe3 Na7 21. b4 a4 22. Rg1 Bb5 23. Na3 Bxd3 24. Qxd3 {½-½ (31) Mueller Alves,M (2300)-Pijl,R (2313) LSS email 2011}) 17... Kd8 {[%emt 0:01:05]} 18. Be3 {[%emt 0:03:14][%cal Ob2b4]} Kc7 {[%emt 0:03:07]} 19. b4 {[%emt 0:00:14]} Kb8 {[%emt 0:02:22]} 20. Rfb1 {[%emt 0:01:06]} h5 {[%emt 0:07:24]} (20... Nxb4 $2 21. Nxb4 Qd8 22. Qf3 $18) (20... Bxb4 $2 21. a3 $18) 21. Qe2 {[%emt 0:03:25]} f5 {[%emt 0:00:59] [#]} (21... Nxb4 $2 22. Nxb4 (22. a3 Rxc2 23. Bxc2 Bb5 $11) 22... Qd8 23. a4 $18) (21... f6 $11 {keeps the balance.}) 22. a4 $1 $16 {[%emt 0:01:34][%cal Ba2a4,Ba4a5][%mdl 32]} Rcg8 {[%emt 0:06:30]} (22... Nxb4 $2 23. Nxb4 (23. a5 Rxc2 24. axb6 Rxe2 $16) 23... Ka8 24. a5 $18 (24. Nxd5 Qc6 $16)) 23. a5 {[%emt 0:02:10]} Qd8 {[%emt 0:00:10]} 24. Bd2 {[%emt 0:06:41] Hoping for b5.} Qe8 $2 {[%emt 0:04:21] A mistake that costs the game.} (24... Ka8 $16) 25. b5 $18 {[%emt 0:00:15][%cal Bb4b5,Bb5b6][%mdl 32]} Nd8 {[%emt 0:00:05]} 26. b6 {[%emt 0:02:59]} a6 {[%emt 0:00:05]} (26... Qg6 $2 27. bxa7+ (27. Rg1 Qf7 $16) 27... Kxa7 28. Ne3 $18) 27. Bxa6 {[%emt 0:00:38]} bxa6 $2 {[%emt 0:04:00]} (27... Qg6 $18 28. Rg1 Qe8) 28. Qxa6 {[%emt 0:00:08]} Nc6 {[%emt 0:00:03]} 29. Nb4 {[%emt 0:00:27] Weighted Error Value: White=0.02 (flawless) /Black=0.55} ({Weaker is} 29. b7 Qg6 30. Rg1 Qe8 $16) 1-0

[Event "13th KIIT Festival-A 2022"]
[Site "Bhubaneswar"]
[Date "2022.05.24"]
[Round "3.14"]
[White "Weerawardane, Romesh"]
[Black "Audi Ameya"]
[Result "0-1"]
[ECO "B41"]
[WhiteElo "2027"]
[BlackElo "2389"]
[Annotator "TA"]
[PlyCount "141"]
[EventDate "2022.05.15"]
[EventType "swiss"]
[EventCountry "IND"]
[SourceTitle "playchess.com"]
[Source "ChessBase"]
[SourceQuality "1"]
[TimeControl "5400+30"]

{[%evp 14,141,51,43,47,47,54,48,47,49,44,45,52,34,34,34,44,33,45,34,39,0,48,-10,-25,-41,-50,-123,-97,-83,-95,-87,-46,-54,-74,-98,-13,-22,-24,-22,-17,-68,36,35,162,160,135,38,38,38,1882,1559,29989,29990,29990,29991,29991,29992,29993,29988,29988,945,945,945,939,917,856,753,772,643,429,411,385,302,244,243,227,213,202,251,251,251,251,251,251,232,121,151,166,89,347,133,367,364,339,312,670,636,570,489,383,0,85,0,0,0,0,0,0,0,18,18,18,18,18,18,18,18,24,24,43,43,46,8,12,-8,-8,-8,-8,-8]} 1. e4 {[%emt 0:00:06]} c5 {[%emt 0:00:12]} 2. Nf3 {[%emt 0:00:08]} e6 {[%emt 0:00:02]} 3. d4 {[%emt 0:00:29]} cxd4 {[%emt 0:00:05]} 4. Nxd4 {[%emt 0:00:04]} a6 {[%emt 0:00:12]} 5. c4 {[%emt 0:00:54]} Nf6 {[%emt 0:00:38]} 6. Nc3 {[%emt 0:00:13]} Qc7 {[%emt 0:00:05]} 7. a3 {[%emt 0:00:20]} b6 {[%emt 0:01:06]} 8. Be3 {[%emt 0:00:42]} Bb7 {[%emt 0:00:04] B41: Sicilian: Kan Variation: 5 c4.} 9. f3 {[%emt 0:00:07]} d6 {[%emt 0:00:13]} 10. Be2 {[%emt 0:00:05]} Nbd7 {[%emt 0:00:04] White is slightly better.} 11. Rc1 {[%emt 0:01:47] now scores much better than the old 11.0-0.} Be7 {[%emt 0:00:07]} 12. O-O {[%emt 0:00:07]} O-O {[%emt 0:00:14]} 13. b4 {[%emt 0:00:12]} Rac8 {[%emt 0:00:28]} 14. Qe1 {[%emt 0:00:32]} Rfe8 {[%emt 0:00:41]} 15. Qf2 {[%emt 0:00:20]} h6 {[%emt 0:02:52]} 16. Rfd1 {[%emt 0:10:30]} Qb8 {[%emt 0:00:55] [#]} 17. Nb3 $146 {[%emt 0:03:27]} ({Predecessor:} 17. Qg3 Nh5 18. Qe1 Nhf6 19. Qf1 d5 20. cxd5 exd5 21. Bxa6 dxe4 22. Bxb7 Qxb7 23. Nxe4 Nxe4 24. Rxc8 Qxc8 25. fxe4 {½-½ (52) Stoeckert,M (2467)-Jensen,E (2454) ICCF email 2016}) 17... Bd8 {[%emt 0:09:07]} (17... d5 $11 {is more appropriate.}) 18. g4 {[%emt 0:11:30]} (18. g3 $14) 18... d5 $11 {[%emt 0:22:38]} 19. cxd5 {[%emt 0:03:38]} exd5 {[%emt 0:00:02]} 20. h4 {[%emt 0:05:28]} (20. Nxd5 $15 Nxd5 21. exd5) 20... dxe4 {[%emt 0:07:29]} 21. f4 {[%emt 0:06:25] [#]} Rxc3 $1 {[%emt 0:09:00]} 22. Rxc3 {[%emt 0:02:15]} Nd5 {[%emt 0:00:05]} 23. Rxd5 {[%emt 0:27:06]} Bxd5 {[%emt 0:00:03]} 24. Nd4 {[%emt 0:00:05]} Bc7 {[%emt 0:16:47]} (24... b5 $1 $17 25. g5 hxg5 26. hxg5 Bb6) 25. g5 {[%emt 0:04:44]} hxg5 {[%emt 0:02:36]} (25... b5 {feels hotter.} 26. Qg3 Bb6 27. Nf5 Kh7) 26. hxg5 {[%emt 0:00:07]} b5 {[%emt 0:01:04]} 27. Bg4 {[%emt 0:05:02]} Nb6 {[%emt 0:03:03]} (27... Nf8 $1 $15 28. Nf5 Ne6) 28. Nf5 $14 {[%emt 0:02:52][%cal Of5g7]} Na4 {[%emt 0:10:31] [#]} (28... Nc4 $14) 29. Nxg7 $1 $18 {[%emt 0:08:57][%mdl 512]} Nxc3 {[%emt 0:02:58]} 30. Nxe8 {[%emt 0:00:12]} ({White should try} 30. Nh5 $1 $16 {[%cal Rh5f6] Hoping for Nf6+.} Be6 31. Nf6+ Kg7 32. Nxe8+ Qxe8 33. Bd4+ Kf8 34. f5 (34. Bxe6 $2 Qxe6 35. Bxc3 Qg4+ 36. Qg2 Qd1+ 37. Kf2 Qc2+ 38. Kf1 Qd3+ 39. Qe2 Qh3+ 40. Qg2 Qxc3 $19)) 30... Qxe8 $14 {[%emt 0:00:37]} 31. Bd4 {[%emt 0:00:12]} f5 $2 {[%emt 0:06:34][%mdl 8192]} (31... f6 $14 32. Bxf6 Qf7) 32. Qh4 {[%emt 0:01:38]} Qe7 33. Qh8+ {[%emt 0:02:06]} Kf7 {[%emt 0:04:36]} 34. Bh5+ {[%emt 0:02:03]} Ke6 {[%emt 0:00:03]} 35. Qc8+ {[%emt 0:00:54][%mdl 64] Skewer, Double Attack} Qd7 {[%emt 0:00:58]} 36. Bf7+ {[%emt 0:00:34][%mdl 64] Pin} ({Stronger than} 36. Qxa6+ Bc6 37. Bxc3 Bxf4 $11) 36... Ke7 {[%emt 0:00:06]} 37. Bf6+ {[%emt 0:01:19]} (37. Bc5+ $142 Kxf7 38. Qxd7+ Kg6 39. Qe8+ Bf7 40. Qh8 Ne2+ 41. Kf2 Bb3 42. Qh6+ Kf7 43. Qf6+ Kg8 44. g6) 37... Kd6 $18 {[%emt 0:00:01]} 38. Qf8+ {[%emt 0:00:51]} Kc6 {[%emt 0:00:02]} 39. Be8 $1 {[%emt 0:00:30]} Ne2+ {[%emt 0:00:36]} 40. Kf1 {[%emt 0:00:40]} Nxf4 {[%emt 0:00:04]} 41. Qc5+ {[%emt 0:00:56][%mdl 64] Deflection} Kb7 {[%emt 0:00:01]} 42. Bxd7 {[%emt 0:00:23] Qf8 would kill now.} Bc4+ {[%emt 0:00:01]} 43. Kg1 {[%emt 0:00:59] White wants to mate with Bc6+.} Bb6 {[%emt 0:00:03]} 44. Bc6+ {[%emt 0:00:06]} ({Weaker is} 44. Bxf5 Bxc5+ 45. bxc5 Kc6 $16) 44... Ka7 {[%emt 0:00:25] [#]} 45. Bd4 {[%emt 0:00:10][%csl Gd4,LRb6,LRf5][%cal Rc5b6]} Ne2+ {[%emt 0:00:19]} (45... Bxc5 $2 46. Bxc5+ Kb8 47. Bd6+ Kc8 48. Bxf4 $18) 46. Kf2 $1 {[%emt 0:00:06][%csl Gd4][%cal Rc5b6]} Bxc5 {[%emt 0:00:06]} 47. Bxc5+ {[%emt 0:00:07][%mdl 4096] Endgame KBB-KBN} Kb8 {[%emt 0:00:01]} 48. Bd6+ {[%emt 0:00:58]} Kc8 {[%emt 0:00:09]} 49. Ke3 {[%emt 0:00:50] Inhibits Nd4.} Nc3 {[%emt 0:03:55]} 50. g6 {[%emt 0:00:30][%mdl 1024] Against Bf7. And now g7 would win. White has strong compensation.} Nd5+ {[%emt 0:00:24]} 51. Kd4 {[%emt 0:00:17]} Nf6 {[%emt 0:01:40][%mdl 8192]} (51... Nc7 $16) 52. Ke5 $2 {[%emt 0:00:47]} (52. a4 $18 {is the precise move to win.}) 52... Ng8 $2 {[%emt 0:00:14]} (52... Nh5 $16 53. Kxf5 e3) 53. Bc5 {[%emt 0:00:54]} Kc7 {[%emt 0:01:21] [#]} 54. Be8 {[%emt 0:00:24] Black must now prevent Bf7.} Kd8 $2 {[%emt 0:00:01]} (54... Nh6 55. g7 Bg8) 55. Bf7 {[%emt 0:00:41]} Nh6 {[%emt 0:00:11]} 56. Kf6 {[%emt 0:00:29]} f4 {[%emt 0:00:07]} 57. Be6 $2 {[%emt 0:00:40]} (57. Bxc4 $18 {[%cal Of6g5] White threatens Kg5! and mate.} bxc4 58. Kg5) 57... e3 {[%emt 0:01:45] [#]} (57... Bxe6 $11 {keeps the balance.} 58. Kxe6 e3) 58. Bb6+ {[%emt 0:00:26] A strong pair of Bishops.} (58. Bxc4 $1 $16 {[%cal Of6g5] Threatens to win with Kg5!} bxc4 59. Kg5) 58... Ke8 $11 {[%emt 0:00:08]} 59. g7 {[%emt 0:00:05]} e2 {[%emt 0:01:15]} 60. Bf2 {[%emt 0:00:03]} f3 {[%emt 0:00:17]} 61. Bc8 {[%emt 0:00:39]} Ng8+ {[%emt 0:00:42]} (61... Kd8 $5 {[%cal Rd8c8]} 62. Bh3 Ke8 $11) 62. Ke5 {[%emt 0:00:27]} Kf7 {[%emt 0:00:43]} 63. Bxa6 {[%emt 0:00:08]} Nf6 {[%emt 0:00:17] ( -> ...Ng4+)} 64. g8=Q+ {[%emt 0:00:40]} Nxg8 {[%emt 0:00:01]} 65. Bb7 {[%emt 0:00:09]} Ke7 {[%emt 0:01:11]} 66. Bxf3 {[%emt 0:00:05]} Kd7 {[%emt 0:00:01]} 67. Kd4 {[%emt 0:00:54][%cal Oa3a4]} Ne7 {[%emt 0:00:38]} 68. a4 {[%emt 0:01:43]} Nc6+ {[%emt 0:00:06] The position is equal.} 69. Kc5 {[%emt 0:00:39]} Ne5 {[%emt 0:00:01]} 70. axb5 {[%emt 0:01:04]} Nxf3 {[%emt 0:02:29]} 71. Kxc4 {[%emt 0:00:30][%mdl 32768] White really could win this.  Weighted Error Value: White=0.17 (very precise) /Black=0.53. Sensor Board Error (Ke4/e5)?} 0-1

[Event "13th KIIT Festival-A 2022"]
[Site "Bhubaneswar"]
[Date "2022.05.24"]
[Round "3.15"]
[White "Mayank Chakraborty"]
[Black "Abdyjapar, Asyl"]
[Result "1/2-1/2"]
[ECO "B07"]
[WhiteElo "2015"]
[BlackElo "2346"]
[Annotator "TA"]
[PlyCount "116"]
[EventDate "2022.05.15"]
[EventType "swiss"]
[EventCountry "IND"]
[SourceTitle "playchess.com"]
[Source "ChessBase"]
[SourceQuality "1"]
[TimeControl "5400+30"]

{[%evp 10,116,36,51,67,67,59,52,64,52,100,99,94,98,124,118,136,138,188,201,183,197,197,197,201,210,216,212,217,219,202,145,153,139,145,153,150,144,150,137,156,148,156,119,125,63,64,53,55,46,39,13,21,16,27,33,75,82,88,73,460,493,433,415,358,388,1420,1231,5945,4931,2568,2147,29952,29939,29966,29965,29977,29978,29971,12824,5666,4535,1284,599,424,73,80,80,80,8,8,8,7,0,0,0,0,0,0,0,0,0,0,0,0,0,0,0,0]} 1. e4 d6 2. d4 Nf6 3. Nc3 g6 4. Bg5 Bg7 5. Qd2 h6 6. Bf4 g5 {B07: Pirc Defence: Miscellaneous Systems.} 7. Be3 Ng4 8. O-O-O $1 {8.0-0-0 is better than 8.h4.} Nd7 {[#] White is slightly better.} 9. Kb1 $146 ({Predecessor:} 9. h4 Nxe3 10. Qxe3 g4 11. e5 c5 12. exd6 h5 13. dxe7 Qxe7 14. Qxe7+ Kxe7 15. Nd5+ {1-0 (40) Quesada Perez,L (2519)-Almeida Quintana,O (2536) Havana 2022}) 9... c5 (9... Nxe3 $14 {should be considered.} 10. fxe3 a6) 10. Nge2 $16 Nxe3 11. fxe3 b5 12. Nxb5 {[%cal Bc3b5,Bb5a7,Ba7c6][%mdl 32]} Rb8 13. Ng3 {White is more active.} Nf6 (13... a6 $16 {might work better.}) 14. e5 $18 (14. Nxa7 Qb6 15. Nb5 Bg4) 14... dxe5 15. dxc5 {[%csl Gd1][%cal Rd2d8] [#]} Qxd2 {[%emt 1:38:00]} 16. Rxd2 {[%emt 1:38:30]} O-O {[%emt 0:00:30]} 17. Nxa7 {[%emt 0:00:30]} Be6 {[%emt 0:00:30]} 18. Nc6 {[%emt 0:00:30]} Rb7 {[%emt 0:00:30]} 19. Nd8 {[%emt 0:00:30]} (19. Nxe5 Nd5 20. Nc4 Nc3+ 21. Kc1 (21. Ka1 $2 Nxa2 22. Rd4 Nc3 $19) 21... Nxa2+ 22. Kd1 Rb5 $15) 19... Rd7 {[%emt 0:00:30]} 20. Rxd7 {[%emt 0:00:30]} Bxd7 {[%emt 0:00:30]} 21. c6 {[%emt 0:00:30]} Rxd8 {[%emt 0:00:30]} 22. cxd7 {[%emt 0:00:30]} Rxd7 {[%emt 0:00:30][%cal Rd7d1]} 23. Be2 {[%emt 0:00:30] Prevents Rd1+.} e6 {[%emt 0:00:30]} 24. Rd1 {[%emt 0:00:30]} Ra7 {[%emt 0:00:30]} 25. c4 {[%emt 0:00:30]} Bf8 {[%emt 0:00:30]} 26. Rd8 {[%emt 0:00:30]} Kg7 {[%emt 0:00:30]} 27. Nh5+ {[%emt 0:00:30]} ({White should play} 27. a3 $16) 27... Nxh5 $14 {[%emt 0:00:30]} 28. Bxh5 {[%emt 0:00:30][%mdl 4096] Endgame KRB-KRB} e4 {[%emt 0:00:30]} 29. Rc8 {[%emt 0:00:30] Against Bc5} Bb4 {[%emt 0:00:30]} 30. Kc2 {[%emt 0:00:30]} Bd6 {[%emt 0:00:30]} 31. c5 {[%emt 0:00:30]} Bxh2 {[%emt 0:00:30]} 32. c6 {[%emt 0:00:30]} f5 {[%emt 0:00:30] [#]} 33. b4 $1 {[%emt 0:00:30] Hoping for b5.} Rxa2+ {[%emt 0:00:30]} 34. Kb3 {[%emt 0:00:30]} Rxg2 {[%emt 0:00:30][%mdl 8192]} (34... Ra1 $16) 35. c7 $18 {[%emt 0:00:30]} Bxc7 {[%emt 0:00:30]} 36. Rxc7+ {[%emt 0:00:30] KRB-KR} Kf6 {[%emt 0:00:30]} 37. b5 {[%emt 0:00:30] b6 is the strong threat.} Rd2 $2 {[%emt 0:00:30]} (37... Rg1 38. Kb2 Rg2+ 39. Kc1 Ra2) 38. b6 {[%emt 0:00:30] Intending b7 and mate.} Rd6 {[%emt 0:00:30]} 39. b7 {[%emt 0:00:30]} Rb6+ {[%emt 0:00:30]} 40. Kc4 {[%emt 0:00:30]} g4 {[%emt 0:00:30]} 41. Kc5 {[%emt 0:00:30]} Rb1 {[%emt 0:00:30]} 42. Be8 {[%emt 0:00:30]} g3 {[%emt 0:00:30]} 43. Bb5 {[%emt 0:00:30]} Rc1+ {[%emt 0:00:30]} 44. Kb6 {[%emt 0:00:30]} Rxc7 {[%emt 0:00:30]} 45. Kxc7 {KB-KP} g2 {[%emt 0:00:30]} 46. b8=Q {[%emt 0:01:00]} Kg7 {[%emt 0:00:30] Prevents Qg8+.} 47. Qe8 $2 {[%emt 0:00:30]} (47. Kd6 $18 {and White stays clearly on top. White wants to mate with Qa7+.} g1=Q 48. Qc7+ (48. Kxe6 Qxe3 49. Qc7+ Kg6 $11) 48... Kg8 49. Qc8+ Kh7 50. Qd7+ Kh8 51. Qe8+ Kh7 52. Qf7+ Kh8 53. Qf6+ Kh7 54. Be8) 47... g1=Q $16 {[%emt 0:00:30]} 48. Qe7+ {[%emt 0:00:30]} (48. Qxe6 Qg3+ 49. Kc8 Qxe3 $16) 48... Kh8 {[%emt 0:00:30]} 49. Qf8+ {[%emt 0:00:30]} (49. Qxe6 $16 Qxe3 50. Qe5+ (50. Qxf5 Qg5 $11) 50... Kh7 51. Qe7+ (51. Qxf5+ Kg7 $16) 51... Kh8 52. Qf8+ Kh7 53. Qf7+ (53. Qxf5+ Kg7 $16) 53... Kh8 54. Qf8+ (54. Qxf5 Qg5 $11) 54... Kh7 55. Qe7+ (55. Qxf5+ Kg7 $16) 55... Kh8 56. Qf8+) 49... Kh7 $11 {[%emt 0:00:30] The position is equal.} 50. Bd7 {[%emt 0:00:30] Strongly threatening Qf7+.} Qxe3 {[%emt 0:00:30]} 51. Qf7+ {[%emt 0:00:30]} Kh8 {[%emt 0:00:30]} 52. Qf6+ {[%emt 0:00:30]} Kh7 {[%emt 0:00:30]} 53. Bxe6 {[%emt 0:00:30]} Qc5+ {[%emt 0:00:30]} 54. Kd7 {[%emt 0:00:30] Threatening mate with Qf7+. The board is on fire.} Qb5+ {[%emt 0:00:30]} 55. Ke7 {[%emt 0:00:30] Qf7+ would kill now.} Qc5+ {[%emt 0:00:30]} 56. Kf7 {[%emt 0:00:30][%csl Gf7][%cal Rf6g7]} Qc7+ {[%emt 0:00:30]} 57. Ke8 {[%emt 0:00:30]} Qc6+ {[%emt 0:00:30]} 58. Ke7 {[%emt 0:00:30]} Qc5+ {[%emt 0:00:30] Black escapes into a draw.  Weighted Error Value: White=0.22 (precise) /Black=0.35} 1/2-1/2